{"text_format":"1","workbook":"xlsx","n_sheets":1,"sheets":["Cenová nabídka"],"not_rendered":{"charts":0,"images":1,"macros":1,"external_links":0,"defined_names":11,"comments":0,"pivot_tables":0},"unopened":[],"bounds":{"document_bytes":16777216,"sheet_cells":100000,"rows_first":2000,"rows_last":500,"rows_between":2000,"halvings":0,"cell_chars":16384,"cell_head_chars":4096},"cells_cut":0,"cells_raw":0,"read":"whole","date_system":"1900"}

{"sheet":"Cenová nabídka","index":0,"n_rows":64,"n_cols":7,"rows_kept":64,"cut":false,"hidden":false,"merged":[[52,0,52,1],[47,0,47,1],[44,0,44,1],[63,4,63,5],[5,1,5,5],[6,1,6,5],[7,1,8,1],[7,2,8,2],[63,0,63,3],[58,0,58,1],[56,0,56,1],[40,0,40,1],[7,6,8,6],[7,5,8,5],[7,4,8,4],[35,0,35,1],[30,0,30,1],[9,0,9,1],[10,0,10,1],[7,3,8,3],[7,0,8,0],[13,0,13,1],[23,0,23,1],[25,0,25,1],[27,0,27,1]]}
["POLOŽKOVÝ SOUPIS PRACÍ A DODÁVEK"]
[]
["Zadavatel:","Nemocnice Vyškov"]
["Místo stavby:","Vyškov"]
[]
["Předmět :","Servis technologické častí interiérového bazénu a výměna těžké bazénové fólie."]
[]
[null,"NÁZEV, POPIS","M.J.","CENA BEZ DPH","MNOŽSTVÍ","CENA CELKEM","POZNÁMKA"]
[]
["VNITŘNÍ PLÁŠŤ - SVAŘENÝ ZE SPECIÁLNÍCH BAZÉNOVÝCH FÓLIÍ - celková spotřeba včetně prořezů, přeložení, atd.",null,null,null,null,{"$f":"IF(E10=\"\",\"\", E10*D10)","v":""}]
["FOLIE ALKORPLAN 3000 TOUCH",null,null,null,null,""]
["ALKORPLAN 3000 TOUCH : dno, stěny ","Fólie ALKORPLAN 3000 TOUCH, design Touch VANITY, šíře 1,65 m - fólie s reliéfem z měkčeného PVC  tloušťky 2,0 mm s polyesterovou výztuží. Návin 21 bm. Čtyřnásobná akrylátová ochranná vrstva.","m2",null,77,0]
["ALKORPLAN 3000 TOUCH: vnitřní  schodiště                             ","Fólie ALKORPLAN 3000 TOUCH, design Touch VANITY, šíře 1,65 m - fólie s reliéfem z měkčeného PVC  tloušťky 2,0 mm s polyesterovou výztuží. Návin 21 bm. Čtyřnásobná akrylátová ochranná vrstva.","kompl.",null,1,0]
["DOPLŇKOVÉ MATERIÁLY PRO FÓLIOVÉ ÚPRAVY",null,null,null,null,""]
["pouze bude-li nutná výměna","Separační podložka celoplošně lepená na dno a stěny (mechanická, tepelná, bio ochrana) 500 g/m2","m2",null,45,0]
["pouze bude-li nutná výměna","Lepidlo disperzní pro separační podložku -1 kg","kg",null,{"$f":"ROUNDUP(0.5*E15,0)","v":23},0]
[null,"Fixační plech s fólií 5 x 5 x 200 cm (na patřičné hrany bazénové vany)","m",null,16,0]
[null,"Narážecí nýt pro ukotvení fixačního plechu","ks",null,96,0]
[null,"Tekutá fólie TMAVĚ MODRÁ, SVĚTLE MODRÁ, TYRKYSOVÁ - ZELENÁ, BÍLÁ, Alkorplan RENOLIT","l",null,1,0]
[null,"Specielní těsnící silikon - kartuše 300 ml (dotěsnění tvarovky vlnolamu)","ks",null,2,0]
[null,"Silikon čirý - 300 ml","ks",null,3,0]
[null,"Tekutý svářecí přípravek THF - 1000 ml","ks",null,1,0]
[null,"Montáž zahrnuta v celkové montáži technologického kompletu",null,null,null,""]
["SKIMMERY",null,null,null,null,""]
[null,"Těsnící sada k bronzovým skimmerům dvoudílná","ks",null,2,0]
["DNOVÉ VPUSTI",null,null,null,null,""]
[null,"Těsnící sada dnové vpusti pro fóliové bazény","ks",null,1,0]
["RECIRKULAČNÍ TRYSKY",null,null,null,null,""]
[null,"Recirkulační tryska ABS - plastová pro fólie/laminát","ks",null,7,0]
[null,"Sací tryska ABS plastová pro fólie/laminát - pro napojení ručního vysavače","ks",null,1,0]
["FILTRAČNÍ ZAŘÍZENÍ ",null,null,null,null,""]
[null,"Těsnění bočního víka pískové filtrační nádoby","ks",null,1,0]
[null,"Čerpadlo BADU PRIME 15, P1-1,10 kW; P2-0,75 kW 230V 15m3/hod při 7,2 m.v.s.; samonasávací s předfiltrem hrubých nečistot, nadproudová ochrana","ks",null,1,0]
[null,"Písková filtrační náplň 0,4 - 0,8mm","ks",null,17,0]
[null,"Písková filtrační náplň 1,0 - 2,0mm","ks",null,3,0]
["ZAŘÍZENÍ NA PLAVÁNÍ PROTI PROUDU",null,null,null,null,""]
[null,"Protiproud vestavný K-JET Calipso 74 m³ 400 V 3,1 kW","ks",null,null,""]
[null,"Protiproud vestavný K-JET Calipso 88 m³ 400 V 4,7 kW","ks",null,null,""]
["předmontáž","Protiproud vestavný dvoutryskový SPECK B.J. Super Sport 75 m3 VG - II předmontážní sada - průchod betonem + čelo + fitinky","ks",null,null,""]
[null,"Čelní maska protiproudu dvoutryskový SPECK B.J. Super Sport 75 m3 VG - II","ks",null,1,0]
["TECHNOLOGICKÝ ROZVADĚČ - REGULACE, AUTOMATIKA",null,null,null,null,""]
[null,"Uprava bazénového rozvaděče (řídící modul, jištění)","kompl.",null,1,{"$f":"IF(E42=\"\",\"\", E42*D42)","v":0}]
[null,"Snímač minimálního průtoku a spínání/blokace dávkování chemie","kompl.",null,1,0]
[null,"Kabeláže a další elektroinstalační materiál  cca","kompl.",null,7,0]
["KYBLÍKOVÉ CHEMICKÉ PROSTŘEDKY",null,null,null,null,""]
[null,"Px - stabilizátor tvrdosti - prevence usazenin na stěnách a dně bazénu 1 lt   ","ks",null,1,0]
[null,"Super chlór - pro prvotní rychlou chloraci - granulát ","ks",null,1,0]
["KANYSTRY - CHEMICKÉ PROSTŘEDKY TEKUTÉ",null,null,null,null,""]
[null,"Proxim chlor stabilizovaný - 35  kg","ks",null,1,0]
[null,"Proxim pH mínus - 35 kg  - 14%","ks",null,1,0]
[null,"ALGICID silný a dlouhotrvající\núčinek, bez zápachu, nekompromisně zabraňuje růstu všech druhu řas - 20litrů.","ks",null,1,0]
[null,"FLOC+C nejmodernější přípravek k flokulaci, dstraňuje i ten nejjemnější zákal tím, že ho shlukuje do pevných vloček, které se zachytí na filtru.  Flokulace na bázi polyaluminiumchloridu (PaC) balení 20 litrů","ks",null,1,0]
["AUTOMATICKÉ MĚŘENÍ PARAMETRŮ VODY A DÁVKOVÁNÍ CHEMIE PRO PRIVÁTNÍ ÚČEL",null,null,null,null,""]
[null,"ASIN AQUA HOME - CLF VS                                     komplexnÍ dávkovací a řídicí systém pro použití v rodinných bazénech. Měří a upravuje pH a přímé měření volného chlóru, programovatelně dávkuje dezinfekční prostředky, v návaznosti na objem bazénu a požadovaný obsah v bazénové vodě. 1 x sonda pH, 1x sonda na volný chlór CLF, jímky na sondy, 4 x peristaltická (hadičková) čerpadla, 4 x nástřikový ventil, 4 x uzavirácí armatury, 4 x závaží do barelu, hadičky, včetně jemného předfiltru . ","ks",null,1,0]
[null,"Zeta Potential Mixer DN 40/2, 195mm (D 50mm)  koagulační mixér pro vstřikování bazénové chemie FLOC+C.","ks",null,1,0]
[null,"Jemný předfiltr DNT","ks",null,1,0]
["TLAKOVÉ TRUBNÍ ROZVODY prům. 50 - 110 mm/6-10 bar, tvarovky, ventily, kotvení, nosný systém, tepelná izolace. Renomovaný holandský výrobce.",null,null,null,null,""]
[null,"Tlakové trubní rozvody průměr 50 - 110 mm/6-10bar, ventily, tvarovky, jistící kusy, tepelné izolace. Spojování lepením, závitovými rozebíratelnými armaturami.  Vzdálenost strojovny od šachty protiproudu, nebo odvodňovací šachty do 10 bm - ODHADEM","kompl.",null,11,0]
["SLUŽBY A DOPLŇKY",null,null,null,null,""]
[null,"MONTÁŽ CELKEM - demontáž nerezového zábradlí a jeho opětovná instalace, demontáž bazénové fólie, vyvaření bazénové vany těžkou fólií, osazení všech komponentů ve dně a stěnách bazénu, opravy filtrace, potrubních rozvodů ohřevu, dezinfekce, zkušební provoz, předání a zaškolení obsluhy","kompl."]
[null,"SOUVISEJÍCÍ SLUŽBY:",null,null,null,{"$f":"IF(E61=\"\",\"\", E61*D61)","v":""}]
[null,"Inženýring (koordinace zakázky, technologický dozor, účast na kontrolních dnech, předání zakázky atd.)","kompl.",null,null,{"$f":"IF(E62=\"\",\"\", E62*D62)","v":""}]
[null,"Dopravně manipulační náklady","kompl.",null,null,{"$f":"IF(E63=\"\",\"\", E63*D63)","v":""}]
["Cena bez DPH:",null,null,null,{"$f":"SUM(F12:F63)","v":0}]